fUSD/lending_fUSD_20240620
["ID","MTS","AMOUNT","RATE_DAILY","PERIOD"]
[329954550,1718865046268,-6642.43,0.00013698,2]
[329954551,1718865046278,-500.0,0.00013698,2]
[329954552,1718865046288,-500.0,0.00013698,2]
[329954553,1718865046298,-500.0,0.00013698,2]
[329954554,1718865046307,-1230.51,0.00013698,2]
[329954555,1718865046316,-652.46,0.00013698,2]
[329954556,1718865046326,-500.0,0.00013698,2]
[329954557,1718865046335,-670.63,0.00013698,2]
[329954558,1718865046344,-500.0,0.00013698,2]
[329954559,1718865046354,-949.08,0.00013698,2]
[329954560,1718865046364,-11556.24,0.00013698,2]
[329954561,1718865046373,-500.0,0.00013698,2]
[329954562,1718865046382,-4077.07,0.00013698,2]
[329954563,1718865046392,-151.0,0.00013698,2]
[329954564,1718865046401,-4870.54,0.00013698,2]
[329954565,1718865046410,-151.0,0.00013698,2]
[329954566,1718865046419,-500.0,0.00013698,2]
[329954567,1718865046429,-151.0,0.00013698,2]
[329954568,1718865046438,-151.0,0.00013698,2]
[329954569,1718865046447,-1756.28,0.00013698,2]
[329954570,1718865046456,-151.0,0.00013698,2]
[329954571,1718865046465,-151.0,0.00013698,2]
[329954572,1718865046476,-500.0,0.00013698,2]
[329954573,1718865046485,-506.77053557,0.00013698,2]
[329954574,1718865046494,-500.0,0.00013698,2]
[329954575,1718865046503,-500.0,0.00013698,2]
[329954576,1718865046512,-151.0,0.00013698,2]
[329954577,1718865046521,-878.79,0.00013698,2]
[329954578,1718865046530,-500.0,0.00013698,2]
[329954579,1718865046540,-250.642493,0.00013698,2]
[329954580,1718865046550,-572.0,0.00013698,2]
[329954581,1718865046561,-706.908868,0.00013698,2]
[329954582,1718865046570,-706.908868,0.00013698,2]
[329954583,1718865046580,-706.908868,0.00013698,2]
[329954584,1718865046590,-706.908868,0.00013698,2]
[329954585,1718865046601,-706.908868,0.00013698,2]
[329954586,1718865046610,-706.908868,0.00013698,2]
[329954587,1718865046620,-4841.47,0.00013698,2]
[329954588,1718865046630,-500.0,0.00013698,2]
[329954589,1718865046640,-500.0,0.00013698,2]
[329954590,1718865046650,-706.908868,0.00013698,2]
[329954591,1718865046659,-500.0,0.00013698,2]
[329954592,1718865046670,-500.0,0.00013698,2]
[329954593,1718865046679,-706.908868,0.00013698,2]
[329954594,1718865046688,-12653.72,0.00013698,2]
[329954595,1718865046698,-706.908868,0.00013698,2]
[329954596,1718865046708,-2493.23,0.00013698,2]
[329954597,1718865046719,-500.0,0.00013698,2]
[329954598,1718865046730,-706.908868,0.00013698,2]
[329954599,1718865046739,-583.49,0.00013698,2]
[329954601,1718865046749,-706.908868,0.00013698,2]
[329954602,1718865046758,-500.0,0.00013698,2]
[329954603,1718865046768,-706.908868,0.00013698,2]
[329954604,1718865046778,-500.0,0.00013698,2]
[329954605,1718865046787,-500.0,0.00013698,2]
[329954606,1718865046797,-1746.55,0.00013698,2]
[329954607,1718865046806,-660.57,0.00013698,2]
[329954608,1718865046815,-500.0,0.00013698,2]
[329954609,1718865046824,-500.0,0.00013698,2]
[329954610,1718865046834,-1247.7,0.00013698,2]
[329954611,1718865046843,-1531.55,0.00013698,2]
[329954612,1718865046852,-500.0,0.00013698,2]
[329954613,1718865046861,-1290.59,0.00013698,2]
[329954614,1718865046870,-759.45,0.00013698,2]
[329954615,1718865046879,-500.0,0.00013698,2]
[329954616,1718865046888,-738.27,0.00013698,2]
[329954617,1718865046898,-1087.42,0.00013698,2]
[329954618,1718865046907,-500.0,0.00013698,2]
[329954619,1718865046916,-500.0,0.00013698,2]
[329954620,1718865046925,-500.0,0.00013698,2]
[329954621,1718865046934,-500.0,0.00013698,2]
[329954622,1718865046944,-307.99192699,0.00013698,2]
[329954623,1718865046954,-655.87,0.00013698,2]
[329954624,1718865046963,-1824.52,0.00013698,2]
[329954625,1718865046973,-500.0,0.00013698,2]
[329954626,1718865046983,-500.0,0.00013698,2]
[329954627,1718865046992,-2550.87,0.00013698,2]
[329954628,1718865047001,-500.0,0.00013698,2]
[329954629,1718865047011,-30052.64,0.00013698,2]
[329954630,1718865047021,-500.0,0.00013698,2]
[329954631,1718865047035,-500.0,0.00013698,2]
[329954632,1718865047044,-834.07,0.00013698,2]
[329954633,1718865047054,-500.0,0.00013698,2]
[329954634,1718865047064,-884.56,0.00013698,2]
[329954635,1718865047073,-2215.29,0.00013698,2]
[329954636,1718865047083,-508.06,0.00013698,2]
[329954637,1718865047092,-500.0,0.00013698,2]
[329954638,1718865047104,-500.0,0.00013698,2]
[329954639,1718865047114,-500.0,0.00013698,2]
[329954640,1718865047123,-2043.84,0.00013698,2]
[329954641,1718865047133,-500.0,0.00013698,2]
[329954642,1718865047144,-8745.62,0.00013698,2]
[329954643,1718865047155,-185.29757897,0.00013698,2]
[329954644,1718865047166,-500.0,0.00013698,2]
[329954645,1718865047176,-151.0,0.00013698,2]
[329954646,1718865047187,-151.0,0.00013698,2]
[329954647,1718865047198,-151.0,0.00013698,2]
[329954648,1718865047208,-151.0,0.00013698,2]
[329954649,1718865047218,-500.0,0.00013698,2]
[329954650,1718865047229,-151.0,0.00013698,2]
[329954651,1718865047238,-11641.3,0.00013698,2]
[329954652,1718865047247,-151.0,0.00013698,2]
[329954653,1718865047256,-1717.21,0.00013698,2]
[329954654,1718865047266,-151.0,0.00013698,2]
[329954655,1718865047275,-500.0,0.00013698,2]
[329954656,1718865047286,-280.440835,0.00013698,2]
[329954657,1718865047296,-2047.14,0.00013698,2]
[329954658,1718865047306,-30335.35,0.00013698,2]
[329954659,1718865047316,-1121.21,0.00013698,2]
[329954660,1718865047327,-500.0,0.00013698,2]
[329954661,1718865047337,-151.0,0.00013698,2]
[329954662,1718865047347,-500.0,0.00013698,2]
[329954663,1718865047356,-151.0,0.00013698,2]
[329954664,1718865047365,-151.0,0.00013698,2]
[329954665,1718865047374,-867.12,0.00013698,2]
[329954666,1718865047384,-596.02,0.00013698,2]
[329954667,1718865047394,-151.0,0.00013698,2]
[329954668,1718865047403,-643.95,0.00013698,2]
[329954669,1718865047412,-2296.76,0.00013698,2]
[329954670,1718865047422,-500.0,0.00013698,2]
[329954671,1718865047431,-500.0,0.00013698,2]
[329954672,1718865047440,-1583.72,0.00013698,2]
[329954673,1718865047449,-790.21,0.00013698,2]
[329954674,1718865047459,-794.12,0.00013698,2]
[329954675,1718865047470,-500.0,0.00013698,2]
[329954676,1718865047482,-500.0,0.00013698,2]
[329954677,1718865047493,-9236.63,0.00013698,2]
[329954678,1718865047502,-746.22,0.00013698,2]
[329954679,1718865047512,-1365.43,0.00013698,2]
[329954680,1718865047521,-576.58,0.00013698,2]
[329954681,1718865047531,-500.0,0.00013698,2]
[329954682,1718865047540,-500.0,0.00013698,2]
[329954683,1718865047550,-3252.89,0.00013698,2]
[329954684,1718865047560,-1883.57,0.00013698,2]
[329954685,1718865047570,-500.0,0.00013698,2]
[329954686,1718865047579,-500.0,0.00013698,2]
[329954687,1718865047589,-500.0,0.00013698,2]
[329954688,1718865047599,-676.63,0.00013698,2]
[329954689,1718865047608,-924.9,0.00013698,2]
[329954690,1718865047618,-500.0,0.00013698,2]
[329954691,1718865047628,-151.0,0.00013698,2]
[329954692,1718865047637,-151.0,0.00013698,2]
[329954693,1718865047647,-2011.46,0.00013698,2]
[329954694,1718865047656,-500.0,0.00013698,2]
[329954695,1718865047666,-500.0,0.00013698,2]
[329954696,1718865047675,-151.0,0.00013698,2]
[329954697,1718865047685,-399.70008105,0.00013698,2]
[329954698,1718865047695,-500.0,0.00013698,2]
[329954699,1718865047704,-1208.85,0.00013698,2]
[329954700,1718865047714,-509.67533916,0.00013698,2]
[329954701,1718865047724,-1094.73,0.00013698,2]
[329954702,1718865047733,-500.0,0.00013698,2]
[329954703,1718865047743,-16136.03,0.00013698,2]
[329954704,1718865047752,-500.0,0.00013698,2]
[329954705,1718865047765,-634.5,0.00013698,2]
[329954706,1718865047775,-666.11,0.00013698,2]
[329954707,1718865047784,-511.5409742,0.00013698,2]
[329954708,1718865047794,-4830.59,0.00013698,2]
[329954709,1718865047803,-2033.0,0.00013698,2]
[329954710,1718865047813,-863.43,0.00013698,2]
[329954711,1718865047823,-763.29,0.00013698,2]
[329954712,1718865047832,-500.0,0.00013698,2]
[329954713,1718865047842,-3483.58,0.00013698,2]
[329954714,1718865047851,-666.65,0.00013698,2]
[329954715,1718865047861,-763.66,0.00013698,2]
[329954716,1718865047871,-577.99968192,0.00013698,2]
[329954717,1718865047881,-4713.36,0.00013698,2]
[329954718,1718865047891,-2128.05,0.00013698,2]
[329954719,1718865047901,-500.0,0.00013698,2]
[329954720,1718865047911,-5476.57,0.00013698,2]
[329954721,1718865047921,-830.32,0.00013698,2]
[329954722,1718865047930,-1303.95,0.00013698,2]
[329954723,1718865047939,-500.0,0.00013698,2]
[329954724,1718865047949,-2191.9,0.00013698,2]
[329954725,1718865047959,-527.36378634,0.00013698,2]
[329954726,1718865047969,-612.95,0.00013698,2]
[329954727,1718865047979,-500.0,0.00013698,2]
[329954728,1718865047988,-500.0,0.00013698,2]
[329954729,1718865047997,-500.0,0.00013698,2]
[329954730,1718865048007,-4051.42,0.00013698,2]
[329954731,1718865048017,-3852.58,0.00013698,2]
[329954732,1718865048033,-664.82,0.00013698,2]
[329954733,1718865048045,-2555.39,0.00013698,2]
[329954734,1718865048056,-1739.93,0.00013698,2]
[329954735,1718865048065,-500.0,0.00013698,2]
[329954736,1718865048076,-1626.21,0.00013698,2]
[329954737,1718865048086,-1744.89,0.00013698,2]
[329954738,1718865048096,-500.0,0.00013698,2]
[329954739,1718865048106,-500.0,0.00013698,2]
[329954740,1718865048115,-500.0,0.00013698,2]
[329954741,1718865048126,-151.0,0.00013698,2]
[329954742,1718865048135,-151.0,0.00013698,2]
[329954743,1718865048145,-151.0,0.00013698,2]
[329954744,1718865048154,-151.0,0.00013698,2]
[329954745,1718865048164,-151.0,0.00013698,2]
[329954746,1718865048173,-2022.77,0.00013698,2]
[329954747,1718865048182,-151.0,0.00013698,2]
[329954748,1718865048191,-151.0,0.00013698,2]
[329954749,1718865048201,-500.0,0.00013698,2]
[329954750,1718865048210,-4311.86,0.00013698,2]
[329954751,1718865048220,-151.0,0.00013698,2]
[329954752,1718865048230,-6052.43,0.00013698,2]
[329954753,1718865048240,-151.0,0.00013698,2]
[329954754,1718865048249,-1268.27,0.00013698,2]
[329954755,1718865048259,-500.0,0.00013698,2]
[329954756,1718865048268,-1138.16,0.00013698,2]
[329954757,1718865048277,-704.34,0.00013698,2]
[329954758,1718865048286,-360.810611,0.00013698,2]
[329954759,1718865048296,-360.810611,0.00013698,2]
[329954760,1718865048305,-3991.05,0.00013698,2]
[329954761,1718865048314,-360.810611,0.00013698,2]
[329954762,1718865048324,-360.810611,0.00013698,2]
[329954763,1718865048333,-500.0,0.00013698,2]
[329954764,1718865048342,-360.810611,0.00013698,2]
[329954765,1718865048352,-360.810611,0.00013698,2]
[329954766,1718865048361,-360.810611,0.00013698,2]
[329954767,1718865048371,-500.0,0.00013698,2]
[329954768,1718865048380,-360.810611,0.00013698,2]
[329954769,1718865048390,-360.810611,0.00013698,2]
[329954770,1718865048400,-4290.84,0.00013698,2]
[329954771,1718865048414,-360.810611,0.00013698,2]
[329954772,1718865048425,-360.810611,0.00013698,2]
[329954773,1718865048437,-882.67,0.00013698,2]
[329954774,1718865048447,-360.810611,0.00013698,2]
[329954775,1718865048459,-360.810611,0.00013698,2]
[329954776,1718865048598,-360.810611,0.00013698,2]
[329954777,1718865048607,-1689.35,0.00013698,2]
[329954778,1718865048617,-6367.57,0.00013698,2]
[329954779,1718865048626,-500.0,0.00013698,2]
[329954780,1718865048635,-2960.73,0.00013698,2]
[329954781,1718865048644,-151.0,0.00013698,2]
[329954782,1718865048654,-500.0,0.00013698,2]
[329954783,1718865048663,-151.0,0.00013698,2]
[329954784,1718865048672,-5604.29,0.00013698,2]
[329954785,1718865048681,-151.0,0.00013698,2]
[329954786,1718865048691,-151.0,0.00013698,2]
[329954787,1718865048700,-151.0,0.00013698,2]
[329954788,1718865048710,-500.0,0.00013698,2]
[329954789,1718865048719,-151.0,0.00013698,2]
[329954790,1718865048730,-3025.3,0.00013698,2]
[329954791,1718865048740,-151.0,0.00013698,2]
[329954792,1718865048749,-500.0,0.00013698,2]
[329954793,1718865048758,-4208.37,0.00013698,2]
[329954794,1718865048767,-1064.72,0.00013698,2]
[329954795,1718865048777,-1883.26,0.00013698,2]
[329954796,1718865048786,-151.0,0.00013698,2]
[329954797,1718865048796,-500.0,0.00013698,2]
[329954798,1718865048805,-500.0,0.00013698,2]
[329954799,1718865048815,-11666.62,0.00013698,2]
[329954800,1718865048825,-151.0,0.00013698,2]
[329954801,1718865048835,-189.716345,0.00013698,2]
[329954802,1718865048845,-524.55132908,0.00013698,2]
[329954803,1718865048854,-2542.12,0.00013698,2]
[329954804,1718865048863,-151.0,0.00013698,2]
[329954805,1718865048874,-151.0,0.00013698,2]
[329954806,1718865048884,-2737.56,0.00013698,2]
[329954807,1718865048895,-151.0,0.00013698,2]
[329954808,1718865048904,-151.0,0.00013698,2]
[329954809,1718865048914,-151.0,0.00013698,2]
[329954810,1718865048924,-22924.44,0.00013698,2]
[329954811,1718865048934,-500.0,0.00013698,2]
[329954812,1718865048944,-500.0,0.00013698,2]
[329954813,1718865048953,-10184.74,0.00013698,2]
[329954814,1718865048963,-1511.06,0.00013698,2]
[329954815,1718865048974,-500.0,0.00013698,2]
[329954816,1718865048983,-3323.66,0.00013698,2]
[329954817,1718865048992,-500.0,0.00013698,2]
[329954818,1718865049004,-500.8,0.00013698,2]
[329954819,1718865049015,-151.0,0.00013698,2]
[329954820,1718865049025,-514.65749127,0.00013698,2]
[329954821,1718865049040,-275.139894,0.00013698,2]
[329954822,1718865049050,-1996.9,0.00013698,2]
[329954823,1718865049059,-7043.52,0.00013698,2]
[329954824,1718865049071,-514.24,0.00013698,2]
[329954825,1718865049081,-500.0,0.00013698,2]
[329954826,1718865049092,-500.0,0.00013698,2]
[329954827,1718865049102,-500.0,0.00013698,2]
[329954828,1718865049114,-500.0,0.00013698,2]
[329954829,1718865049124,-500.0,0.00013698,2]
[329954830,1718865049134,-300.28,0.00013698,2]
[329954831,1718865049143,-1485.04,0.00013698,2]
[329954832,1718865049153,-500.0,0.00013698,2]
[329954833,1718865049162,-500.0,0.00013698,2]
[329954834,1718865049171,-500.0,0.00013698,2]
[329954835,1718865049180,-6173.37,0.00013698,2]
[329954836,1718865049190,-862.98,0.00013698,2]
[329954837,1718865049199,-500.0,0.00013698,2]
[329954838,1718865049210,-500.0,0.00013698,2]
[329954839,1718865049220,-500.0,0.00013698,2]
[329954840,1718865049231,-1052.4,0.00013698,2]
[329954841,1718865049240,-1210.07,0.00013698,2]
[329954842,1718865049250,-956.58,0.00013698,2]
[329954843,1718865049261,-2499.01,0.00013698,2]
[329954844,1718865049271,-2882.02,0.00013698,2]
[329954845,1718865049280,-500.0,0.00013698,2]
[329954846,1718865049289,-500.0,0.00013698,2]
[329954847,1718865049299,-151.0,0.00013698,2]
[329954848,1718865049308,-1384.63,0.00013698,2]
[329954849,1718865049318,-151.0,0.00013698,2]
[329954850,1718865049329,-648.45,0.00013698,2]
[329954851,1718865049339,-151.0,0.00013698,2]
[329954852,1718865049349,-500.0,0.00013698,2]
[329954853,1718865049359,-151.0,0.00013698,2]
[329954854,1718865049368,-500.0,0.00013698,2]
[329954855,1718865049378,-500.0,0.00013698,5]
[329954856,1718865049388,-2810.16,0.00013698,2]
[329954857,1718865049398,-3901.33,0.00013698,2]
[329954858,1718865049407,-250.0,0.00013698,2]
[329954859,1718865049416,-151.0,0.00013698,2]
[329954860,1718865049426,-151.0,0.00013698,2]
[329954861,1718865049435,-151.0,0.00013698,2]
[329954862,1718865049444,-604.29120958,0.00013698,2]
[329954863,1718865049454,-500.0,0.00013698,2]
[329954864,1718865049464,-3691.55,0.00013698,2]
[329954865,1718865049474,-500.0,0.00013698,2]
[329954866,1718865049483,-1111.0,0.00013698,2]
[329954867,1718865049494,-1219.48,0.00013698,2]
[329954868,1718865049503,-749.23,0.00013698,2]
[329954869,1718865049513,-500.0,0.00013698,2]
[329954870,1718865049522,-500.0,0.00013698,2]
[329954871,1718865049532,-500.0,0.00013698,2]
[329954872,1718865049542,-4804.54,0.00013698,2]
[329954873,1718865049551,-500.0,0.00013698,2]
[329954874,1718865049560,-2724.44,0.00013698,2]
[329954875,1718865049570,-500.0,0.00013698,2]
[329954876,1718865049579,-2715.86,0.00013698,2]
[329954877,1718865049589,-500.0,0.00013698,2]
[329954878,1718865049598,-500.0,0.00013698,2]
[329954879,1718865049607,-500.0,0.00013698,2]
[329954880,1718865049617,-356.8587051,0.00013698,2]
[329954881,1718865049626,-500.0,0.00013698,2]
[329954882,1718865049636,-1545.46,0.00013698,2]
[329954883,1718865049646,-6454.77,0.00013698,2]
[329954884,1718865049655,-500.0,0.00013698,2]
[329954885,1718865049665,-500.0,0.00013698,2]
[329954886,1718865049674,-500.0,0.00013698,2]
[329954887,1718865049683,-1578.78,0.00013698,2]
[329954888,1718865049692,-500.0,0.00013698,2]
[329954889,1718865049701,-500.0,0.00013698,2]
[329954890,1718865049711,-2398.79,0.00013698,2]
[329954891,1718865049720,-500.0,0.00013698,2]
[329954892,1718865049732,-500.0,0.00013698,2]
[329954893,1718865049744,-500.0,0.00013698,2]
[329954894,1718865049754,-500.0,0.00013698,2]
[329954895,1718865049763,-500.0,0.00013698,2]
[329954896,1718865049773,-500.0,0.00013698,2]
[329954897,1718865049783,-4042.27,0.00013698,2]
[329954898,1718865049793,-704.91,0.00013698,2]
[329954899,1718865049803,-500.0,0.00013698,2]
[329954900,1718865049812,-500.0,0.00013698,2]
[329954901,1718865049822,-500.0,0.00013698,2]
[329954902,1718865049831,-152.624273,0.00013698,2]
[329954903,1718865049841,-500.0,0.00013698,2]
[329954904,1718865049851,-1269.61,0.00013698,2]
[329954905,1718865049860,-2018.44,0.00013698,2]
[329954906,1718865049869,-5596.54,0.00013698,2]
[329954907,1718865049879,-4511.71,0.00013698,2]
[329954908,1718865049888,-2797.22,0.00013698,2]
[329954909,1718865049898,-500.0,0.00013698,2]
[329954910,1718865049917,-500.0,0.00013698,2]
[329954911,1718865049929,-500.0,0.00013698,2]
[329954912,1718865049939,-500.0,0.00013698,2]
[329954913,1718865049949,-500.0,0.00013698,2]
[329954914,1718865049958,-675.64,0.00013698,2]
[329954915,1718865049968,-4209.41,0.00013698,2]
[329954916,1718865049978,-570.68,0.00013698,2]
[329954917,1718865049988,-500.0,0.00013698,2]
[329954918,1718865049997,-6275.01,0.00013698,2]
[329954919,1718865050007,-2298.51,0.00013698,2]
[329954920,1718865050016,-500.0,0.00013698,2]
[329954921,1718865050027,-1056.78,0.00013698,2]
[329954922,1718865050040,-379.85385198,0.00013698,2]
[329954923,1718865050051,-3341.37,0.00013698,2]
[329954924,1718865050060,-500.0,0.00013698,2]
[329954925,1718865050071,-502.63263001,0.00013698,2]
[329954926,1718865050080,-500.0,0.00013698,2]
[329954927,1718865050090,-4644.54,0.00013698,2]
[329954928,1718865050099,-500.0,0.00013698,2]
[329954929,1718865050111,-2247.52,0.00013698,2]
[329954930,1718865050122,-500.0,0.00013698,2]
[329954931,1718865050131,-508.82902437,0.00013698,2]
[329954932,1718865050140,-593.03252862,0.00013698,2]
[329954933,1718865050151,-500.0,0.00013698,2]
[329954934,1718865050161,-1127.52,0.00013698,2]
[329954935,1718865050170,-500.0,0.00013698,2]
[329954936,1718865050180,-1131.66,0.00013698,2]
[329954937,1718865050190,-500.0,0.00013698,2]
[329954938,1718865050200,-500.0,0.00013698,2]
[329954939,1718865050210,-151.0,0.00013698,2]
[329954940,1718865050219,-151.0,0.00013698,2]
[329954941,1718865050230,-500.0,0.00013698,2]
[329954942,1718865050240,-151.0,0.00013698,2]
[329954943,1718865050250,-2986.8,0.00013698,2]
[329954944,1718865050260,-500.0,0.00013698,2]
[329954945,1718865050269,-500.0,0.00013698,2]
[329954946,1718865050279,-1024.5,0.00013698,2]
[329954947,1718865050288,-500.0,0.00013698,2]
[329954948,1718865050298,-559.7,0.00013698,2]
[329954949,1718865050308,-1338.18,0.00013698,2]
[329954950,1718865050317,-602.33911148,0.00013698,2]
[329954951,1718865050327,-2610.87,0.00013698,2]
[329954952,1718865050337,-500.0,0.00013698,2]
[329954953,1718865050347,-151.0,0.00013698,2]
[329954954,1718865050357,-1419.63,0.00013699,2]
[329954955,1718865050366,-200.0,0.00013699,2]
[329954956,1718865050376,-1312.3,0.00013699,2]
[329954957,1718865050385,-2751.0,0.00013699,2]
[329954958,1718865050395,-151.0,0.00013699,2]
[329954959,1718865050404,-151.0,0.00013699,2]
[329954960,1718865050414,-151.0,0.00013699,2]
[329954961,1718865050423,-151.0,0.00013699,2]
[329954962,1718865050433,-151.0,0.00013699,2]
[329954963,1718865050442,-151.0,0.00013699,2]
[329954964,1718865050451,-151.0,0.00013699,2]
[329954965,1718865050461,-151.0,0.00013699,2]
[329954966,1718865050471,-151.0,0.00013699,2]
[329954967,1718865050481,-250.0,0.00013699,2]
[329954968,1718865050491,-151.0,0.00013699,2]
[329954969,1718865050501,-500.0,0.000137,2]
[329954970,1718865050511,-341.3,0.000137,2]
[329954971,1718865050520,-5482.70986109,0.00013716,2]
[329954972,1718865050530,-257.3,0.00013776,2]
[329954973,1718865050539,-205.866,0.00013776,2]
[329954974,1718865050549,-2411.0,0.00013776,2]
[329954975,1718865050558,-1304.0,0.00013776,2]
[329954976,1718865050568,-461.686,0.00013776,2]
[329954977,1718865050577,-2009.395,0.00013776,2]
[329954978,1718865050586,-549.367,0.00013776,2]
[329954979,1718865050596,-3199.0,0.00013776,2]
[329954980,1718865050605,-151.0,0.00013776,2]
[329954981,1718865050615,-706.908868,0.00013776,2]
[329954982,1718865050624,-706.908868,0.00013776,2]
[329954983,1718865050634,-292.207,0.00013776,2]
[329954984,1718865050644,-4012.343,0.00013776,2]
[329954985,1718865050654,-5796.0,0.00013776,2]
[329954986,1718865050664,-1271.0,0.00013776,2]
[329954987,1718865050674,-1660.0,0.00013776,2]
[329954988,1718865050684,-38140.0,0.00013776,2]
[329954989,1718865050695,-1196.0,0.00013776,2]
[329954990,1718865050704,-812.0,0.00013776,2]
[329954991,1718865050714,-151.0,0.0001379,2]
[329954992,1718865050724,-7791.15999684,0.0001379,2]
[329954993,1718865050734,-7791.15999684,0.0001379,2]
[329954994,1718865050744,-2365.86931066,0.00013799,2]
[329954995,1718865050754,-2365.86931061,0.00013799,2]
[329954996,1718865050763,-2365.86931061,0.0001381,2]
[329954997,1718865050773,-7791.15999684,0.0001381,2]
[329954998,1718865050782,-150.0,0.00013816,2]
[329954999,1718865050792,-150.793,0.00013816,2]
[329955000,1718865050802,-252.946,0.00013816,2]
[329955001,1718865050811,-150.224,0.00013816,2]
[329955002,1718865050821,-166.026,0.00013816,2]
[329955003,1718865050832,-5482.70986109,0.00013835,2]
[329955004,1718865050842,-200.0,0.00013859,2]
[329955005,1718865050852,-200.0,0.00013859,2]
[329955006,1718865050862,-489.22,0.0001386,2]
[329955007,1718865050872,-200.0,0.0001386,2]
[329955008,1718865050883,-1000.0,0.0001386,2]
[329955009,1718865050892,-500.0,0.0001386,2]
[329955010,1718865050902,-200.0,0.0001386,2]
[329955011,1718865050912,-189.32465771,0.0001387,2]
[329955012,1718865050921,-1142.33029588,0.0001387,2]
[329955013,1718865050931,-3666.66963816,0.0001387,2]
[329955014,1718865050941,-2100.0,0.00013889,2]
[329955015,1718865050950,-300.0,0.00013889,2]
[329955016,1718865050959,-2247.37763279,0.000139,2]
[329955017,1718865050969,-10000.0,0.000139,2]
[329955018,1718865050980,-752.92975559,0.000139,2]
[329955019,1718865050990,-151.0,0.000139,2]
[329955020,1718865051000,-500.0,0.000139,2]
[329955021,1718865051010,-151.0,0.000139,2]
[329955022,1718865051020,-491.813602,0.000139,2]
[329955023,1718865051034,-151.0,0.000139,2]
[329955024,1718865051043,-360.810611,0.000139,2]
[329955025,1718865051052,-360.810611,0.000139,2]
[329955026,1718865051062,-151.0,0.000139,2]
[329955027,1718865051073,-5482.70986109,0.00013953,2]
[329955028,1718865051082,-1085.2838079,0.00013961,2]
[329955029,1718865051092,-2365.86931061,0.00013965,2]
[329955030,1718865051102,-7791.15999684,0.00013965,2]
[329955031,1718865051112,-151.0,0.00013968,2]
[329955032,1718865051122,-706.908868,0.00013968,2]
[329955033,1718865051132,-706.908868,0.00013968,2]
[329955034,1718865051141,-4723.23,0.00013968,2]
[329955035,1718865051151,-166.1059049,0.00013969,2]
[329955036,1718865051161,-294.22516719,0.0001397,2]
[329955037,1718865051170,-155.34634038,0.0001397,2]
[329955038,1718865051180,-12739.71338692,0.0001397,2]
[329955039,1718865051190,-205.69872205,0.0001397,2]
[329955040,1718865051200,-1060870.58417025,0.0001397,2]
[329955041,1718865051715,-314.48562748,0.0001397,2]
[329955042,1718865051728,-656.18,0.0001397,2]
[329955043,1718865052054,-1826.39,0.00013698,2]
[329955044,1718865052064,-500.0,0.00013698,2]
[329955045,1718865052075,-500.0,0.00013698,2]
[329955046,1718865052084,-500.0,0.00013698,2]
[329955047,1718865052094,-500.0,0.00013698,2]
[329955048,1718865052104,-66526.52112925,0.0001397,2]
[329955049,1718865052363,-537.27333268,0.00013776,2]
[329955050,1718865052375,-479.26999963,0.00013776,2]